[Event "Titled Tuesday Blitz April 12 Early 2022"]
[White "Jakubowska, Anna"]
[Black "Yurovskykh, Oleksandr"]
[WhiteFideId "1121952"]
[BlackFideId "14134020"]
[WhiteElo "1924"]
[BlackElo "2292"]
[Result "1/2-1/2"]
[Round "08"]
[TimeControl "180+1"]
[Date "2022.04.13"]
[WhiteClock "0:00:21"]
[BlackClock "0:00:11"]

1. e4 {[%clk 0:03:00]}  d5 {[%clk 0:02:48]} 2. exd5 {[%clk 0:02:59]}  Qxd5 {[%clk 0:02:48]} 3. Nc3 {[%clk 0:02:59]}  Qd8 {[%clk 0:02:48]} 4. Bc4 {[%clk 0:02:58]}  c5 {[%clk 0:02:47]} 5. d3 {[%clk 0:02:58]}  Nc6 {[%clk 0:02:47]} 6. Nge2 {[%clk 0:02:57]}  Nf6 {[%clk 0:02:45]} 7. Be3 {[%clk 0:02:56]}  e6 {[%clk 0:02:36]} 8. h3 {[%clk 0:02:55]}  Nd4 {[%clk 0:02:30]} 9. Ng3 {[%clk 0:02:47]}  Be7 {[%clk 0:02:29]} 10. O-O {[%clk 0:02:45]}  O-O {[%clk 0:02:29]} 11. Nge4 {[%clk 0:02:42]}  b6 {[%clk 0:02:22]} 12. Nxf6+ {[%clk 0:02:38]}  Bxf6 {[%clk 0:02:22]} 13. Ne4 {[%clk 0:02:37]}  Be7 {[%clk 0:02:19]} 14. c3 {[%clk 0:02:37]}  Nf5 {[%clk 0:02:17]} 15. Bf4 {[%clk 0:02:29]}  Bb7 {[%clk 0:02:16]} 16. Qg4 {[%clk 0:02:14]}  Qd7 {[%clk 0:02:09]} 17. Rad1 {[%clk 0:02:08]}  Kh8 {[%clk 0:01:46]} 18. Bg5 {[%clk 0:01:51]}  Bxg5 {[%clk 0:01:34]} 19. Nxg5 {[%clk 0:01:50]}  h6 {[%clk 0:01:27]} 20. Ne4 {[%clk 0:01:50]}  Rad8 {[%clk 0:01:24]} 21. Qf4 {[%clk 0:01:45]}  Nd6 {[%clk 0:01:15]} 22. Nxd6 {[%clk 0:01:36]}  Qxd6 {[%clk 0:01:16]} 23. Qe3 {[%clk 0:01:32]}  Rd7 {[%clk 0:01:12]} 24. d4 {[%clk 0:01:31]}  Rfd8 {[%clk 0:01:03]} 25. Be2 {[%clk 0:01:27]}  Qd5 {[%clk 0:00:44]} 26. Bf3 {[%clk 0:01:26]}  Qd6 {[%clk 0:00:25]} 27. dxc5 {[%clk 0:01:23]}  Qxc5 {[%clk 0:00:20]} 28. Qxc5 {[%clk 0:01:22]}  bxc5 {[%clk 0:00:19]} 29. Rxd7 {[%clk 0:01:18]}  Rxd7 {[%clk 0:00:20]} 30. Bxb7 {[%clk 0:01:16]}  Rxb7 {[%clk 0:00:21]} 31. b3 {[%clk 0:01:16]}  Rd7 {[%clk 0:00:21]} 32. f3 {[%clk 0:01:10]}  Rd3 {[%clk 0:00:18]} 33. Rc1 {[%clk 0:01:09]}  Kg8 {[%clk 0:00:18]} 34. Rc2 {[%clk 0:01:08]}  Kf8 {[%clk 0:00:17]} 35. Kf2 {[%clk 0:01:09]}  Rd1 {[%clk 0:00:17]} 36. Ke2 {[%clk 0:01:08]}  Rg1 {[%clk 0:00:17]} 37. Kd3 {[%clk 0:01:08]}  Ke7 {[%clk 0:00:16]} 38. Kc4 {[%clk 0:01:08]}  Kd6 {[%clk 0:00:17]} 39. b4 {[%clk 0:01:06]}  cxb4 {[%clk 0:00:17]} 40. cxb4 {[%clk 0:01:06]}  Kc6 {[%clk 0:00:16]} 41. a4 {[%clk 0:00:59]}  a6 {[%clk 0:00:16]} 42. b5+ {[%clk 0:00:54]}  axb5+ {[%clk 0:00:16]} 43. axb5+ {[%clk 0:00:55]}  Kb6 {[%clk 0:00:16]} 44. Rb2 {[%clk 0:00:56]}  Rd1 {[%clk 0:00:15]} 45. Kc3 {[%clk 0:00:41]}  Rd5 {[%clk 0:00:15]} 46. Kc4 {[%clk 0:00:40]}  f6 {[%clk 0:00:14]} 47. Re2 {[%clk 0:00:37]}  Rc5+ {[%clk 0:00:11]} 48. Kd4 {[%clk 0:00:36]}  e5+ {[%clk 0:00:08]} 49. Ke4 {[%clk 0:00:36]}  g6 {[%clk 0:00:08]} 50. Rd2 {[%clk 0:00:36]}  Kxb5 {[%clk 0:00:07]} 51. Rd6 {[%clk 0:00:35]}  Rc4+ {[%clk 0:00:07]} 52. Ke3 {[%clk 0:00:33]}  Rf4 {[%clk 0:00:06]} 53. Rd7 {[%clk 0:00:20]}  h5 {[%clk 0:00:06]} 54. g3 {[%clk 0:00:17]}  Rf5 {[%clk 0:00:06]} 55. g4 {[%clk 0:00:18]}  hxg4 {[%clk 0:00:06]} 56. hxg4 {[%clk 0:00:18]}  Rf4 {[%clk 0:00:06]} 57. Rg7 {[%clk 0:00:19]}  g5 {[%clk 0:00:06]} 58. Rc7 {[%clk 0:00:19]}  Kb6 {[%clk 0:00:07]} 59. Rc1 {[%clk 0:00:18]}  Rd4 {[%clk 0:00:07]} 60. Rc8 {[%clk 0:00:17]}  Ra4 {[%clk 0:00:07]} 61. Rf8 {[%clk 0:00:16]}  Rf4 {[%clk 0:00:07]} 62. Rc8 {[%clk 0:00:16]}  Kb7 {[%clk 0:00:08]} 63. Rc2 {[%clk 0:00:15]}  e4 {[%clk 0:00:08]} 64. fxe4 {[%clk 0:00:14]}  Rxg4 {[%clk 0:00:08]} 65. Rf2 {[%clk 0:00:14]}  Rg3+ {[%clk 0:00:07]} 66. Kd4 {[%clk 0:00:13]}  Rg1 {[%clk 0:00:07]} 67. Rxf6 {[%clk 0:00:13]}  g4 {[%clk 0:00:07]} 68. Ke3 {[%clk 0:00:13]}  g3 {[%clk 0:00:07]} 69. Rg6 {[%clk 0:00:13]}  Kc7 {[%clk 0:00:05]} 70. Kf3 {[%clk 0:00:13]}  Rf1+ {[%clk 0:00:06]} 71. Ke2 {[%clk 0:00:12]}  Rg1 {[%clk 0:00:06]} 72. Kf3 {[%clk 0:00:12]}  Rf1+ {[%clk 0:00:07]} 73. Ke2 {[%clk 0:00:12]}  Rf2+ {[%clk 0:00:07]} 74. Ke3 {[%clk 0:00:12]}  Rg2 {[%clk 0:00:06]} 75. Kf3 {[%clk 0:00:12]}  Rg1 {[%clk 0:00:07]} 76. Rxg3 {[%clk 0:00:12]}  Rxg3+ {[%clk 0:00:05]} 77. Kxg3 {[%clk 0:00:13]}  Kd6 {[%clk 0:00:05]} 78. Kf4 {[%clk 0:00:14]}  Ke6 {[%clk 0:00:06]} 79. Kg4 {[%clk 0:00:14]}  Ke5 {[%clk 0:00:06]} 80. Kf3 {[%clk 0:00:15]}  Ke6 {[%clk 0:00:07]} 81. Kf4 {[%clk 0:00:16]}  Kf6 {[%clk 0:00:07]} 82. e5+ {[%clk 0:00:16]}  Ke6 {[%clk 0:00:07]} 83. Ke4 {[%clk 0:00:17]}  Ke7 {[%clk 0:00:08]} 84. Kd5 {[%clk 0:00:18]}  Kd7 {[%clk 0:00:08]} 85. e6+ {[%clk 0:00:19]}  Ke7 {[%clk 0:00:09]} 86. Ke5 {[%clk 0:00:20]}  Ke8 {[%clk 0:00:10]} 87. Kf6 {[%clk 0:00:20]}  Kf8 {[%clk 0:00:10]} 88. e7+ {[%clk 0:00:20]}  Ke8 {[%clk 0:00:11]} 89. Ke6 {[%clk 0:00:21]} 1/2-1/2


[Site "https://www.chess.com"]

[Event "Titled Tuesday Blitz April 12 Early 2022"]
[White "Jobava, Baadur"]
[Black "Sarana, Alexey"]
[WhiteFideId "13601520"]
[BlackFideId "24133795"]
[WhiteElo "2617"]
[BlackElo "2666"]
[Result "0-1"]
[Round "08"]
[TimeControl "180+1"]
[Date "2022.04.12"]
[WhiteClock "0:00:01"]
[BlackClock "0:00:41"]

1. b3 {[%clk 0:03:00]}  d5 {[%clk 0:02:55]} 2. Bb2 {[%clk 0:03:01]}  Bf5 {[%clk 0:02:56]} 3. d3 {[%clk 0:03:01]}  e6 {[%clk 0:02:56]} 4. Nd2 {[%clk 0:03:01]}  Nf6 {[%clk 0:02:56]} 5. g3 {[%clk 0:03:02]}  h6 {[%clk 0:02:57]} 6. Bg2 {[%clk 0:03:02]}  Bc5 {[%clk 0:02:54]} 7. e4 {[%clk 0:03:01]}  Bh7 {[%clk 0:02:52]} 8. Ne2 {[%clk 0:03:00]}  O-O {[%clk 0:02:27]} 9. O-O {[%clk 0:03:00]}  a5 {[%clk 0:02:26]} 10. a4 {[%clk 0:03:00]}  Nc6 {[%clk 0:02:24]} 11. Bxf6 {[%clk 0:02:49]}  Qxf6 {[%clk 0:02:24]} 12. exd5 {[%clk 0:02:50]}  exd5 {[%clk 0:02:22]} 13. Bxd5 {[%clk 0:02:50]}  Rad8 {[%clk 0:02:01]} 14. Be4 {[%clk 0:02:48]}  Nd4 {[%clk 0:01:51]} 15. Bxh7+ {[%clk 0:02:46]}  Kxh7 {[%clk 0:01:52]} 16. Ne4 {[%clk 0:02:39]}  Qc6 {[%clk 0:01:50]} 17. Nxd4 {[%clk 0:02:24]}  Bxd4 {[%clk 0:01:51]} 18. Rc1 {[%clk 0:02:16]}  f5 {[%clk 0:01:50]} 19. Nd2 {[%clk 0:02:17]}  f4 {[%clk 0:01:49]} 20. c3 {[%clk 0:01:24]}  fxg3 {[%clk 0:01:34]} 21. cxd4 {[%clk 0:01:10]}  gxh2+ {[%clk 0:01:34]} 22. Kxh2 {[%clk 0:01:11]}  Qd6+ {[%clk 0:01:34]} 23. Kg2 {[%clk 0:01:10]}  Qg6+ {[%clk 0:01:32]} 24. Kh3 {[%clk 0:00:56]}  Rf5 {[%clk 0:00:52]} 25. Rc5 {[%clk 0:00:33]}  Rxc5 {[%clk 0:00:51]} 26. dxc5 {[%clk 0:00:34]}  Rxd3+ {[%clk 0:00:52]} 27. Kh2 {[%clk 0:00:35]}  Rd5 {[%clk 0:00:50]} 28. Nc4 {[%clk 0:00:13]}  Rh5+ {[%clk 0:00:49]} 29. Qxh5 {[%clk 0:00:12]}  Qxh5+ {[%clk 0:00:50]} 30. Kg3 {[%clk 0:00:12]}  Qxc5 {[%clk 0:00:51]} 31. Re1 {[%clk 0:00:12]}  b5 {[%clk 0:00:51]} 32. axb5 {[%clk 0:00:12]}  Qxb5 {[%clk 0:00:52]} 33. Re3 {[%clk 0:00:13]}  a4 {[%clk 0:00:52]} 34. Na3 {[%clk 0:00:08]}  Qg5+ {[%clk 0:00:52]} 35. Kf3 {[%clk 0:00:09]}  Qf5+ {[%clk 0:00:51]} 36. Ke2 {[%clk 0:00:09]}  Qg4+ {[%clk 0:00:42]} 37. f3 {[%clk 0:00:02]}  Qg2+ {[%clk 0:00:43]} 38. Ke1 {[%clk 0:00:01]}  axb3 {[%clk 0:00:43]} 39. Rxb3 {[%clk 0:00:01]}  h5 {[%clk 0:00:43]} 40. Nc4 {[%clk 0:00:01]}  Qc2 {[%clk 0:00:41]} 0-1


[Site "https://www.chess.com"]

[Event "Titled Tuesday Blitz April 12 Early 2022"]
[White "Jumabayev, Rinat"]
[Black "Andreikin, Dmitry"]
[WhiteFideId "13702661"]
[BlackFideId "4158814"]
[WhiteElo "2561"]
[BlackElo "2736"]
[Result "0-1"]
[Round "08"]
[TimeControl "180+1"]
[Date "2022.04.12"]
[WhiteClock "0:00:02"]
[BlackClock "0:00:10"]

1. d4 {[%clk 0:03:00]}  Nf6 {[%clk 0:02:59]} 2. c4 {[%clk 0:03:01]}  e6 {[%clk 0:02:59]} 3. Nf3 {[%clk 0:03:01]}  a6 {[%clk 0:02:55]} 4. Nc3 {[%clk 0:02:54]}  d5 {[%clk 0:02:56]} 5. cxd5 {[%clk 0:02:55]}  exd5 {[%clk 0:02:56]} 6. Bg5 {[%clk 0:02:55]}  Be6 {[%clk 0:02:56]} 7. e3 {[%clk 0:02:55]}  Nbd7 {[%clk 0:02:56]} 8. Bd3 {[%clk 0:02:52]}  h6 {[%clk 0:02:56]} 9. Bf4 {[%clk 0:02:51]}  g5 {[%clk 0:02:56]} 10. Bg3 {[%clk 0:02:50]}  Nh5 {[%clk 0:02:56]} 11. Be5 {[%clk 0:02:49]}  Nhf6 {[%clk 0:02:56]} 12. Bg3 {[%clk 0:02:46]}  Nh5 {[%clk 0:02:57]} 13. Qc2 {[%clk 0:02:42]}  Nxg3 {[%clk 0:02:56]} 14. hxg3 {[%clk 0:02:42]}  c6 {[%clk 0:02:50]} 15. Bf5 {[%clk 0:02:37]}  Qf6 {[%clk 0:02:46]} 16. g4 {[%clk 0:02:37]}  Bg7 {[%clk 0:02:43]} 17. Ne2 {[%clk 0:02:35]}  Bxf5 {[%clk 0:02:41]} 18. Qxf5 {[%clk 0:02:33]}  Qxf5 {[%clk 0:02:40]} 19. gxf5 {[%clk 0:02:34]}  g4 {[%clk 0:02:24]} 20. Nd2 {[%clk 0:02:18]}  h5 {[%clk 0:02:24]} 21. Nf4 {[%clk 0:02:11]}  Nf6 {[%clk 0:02:20]} 22. Ke2 {[%clk 0:02:03]}  Bf8 {[%clk 0:02:17]} 23. Nd3 {[%clk 0:01:23]}  Bd6 {[%clk 0:02:04]} 24. f3 {[%clk 0:01:02]}  Rg8 {[%clk 0:01:51]} 25. f4 {[%clk 0:00:53]}  Ke7 {[%clk 0:01:41]} 26. Nf1 {[%clk 0:00:51]}  Rh8 {[%clk 0:01:32]} 27. Rh4 {[%clk 0:00:49]}  Ne4 {[%clk 0:01:32]} 28. Nf2 {[%clk 0:00:49]}  Nf6 {[%clk 0:01:25]} 29. Ng3 {[%clk 0:00:49]}  Rh7 {[%clk 0:01:17]} 30. Rah1 {[%clk 0:00:46]}  Rah8 {[%clk 0:01:17]} 31. Nd3 {[%clk 0:00:44]}  Kf8 {[%clk 0:01:17]} 32. b4 {[%clk 0:00:39]}  Be7 {[%clk 0:01:15]} 33. a4 {[%clk 0:00:23]}  Ne4 {[%clk 0:01:05]} 34. Nxe4 {[%clk 0:00:21]}  dxe4 {[%clk 0:01:06]} 35. Nc5 {[%clk 0:00:20]}  Bxh4 {[%clk 0:00:48]} 36. Rxh4 {[%clk 0:00:21]}  Ke7 {[%clk 0:00:47]} 37. Nxe4 {[%clk 0:00:21]}  a5 {[%clk 0:00:46]} 38. bxa5 {[%clk 0:00:12]}  Ra8 {[%clk 0:00:46]} 39. Nf2 {[%clk 0:00:06]}  Rxa5 {[%clk 0:00:28]} 40. Nxg4 {[%clk 0:00:07]}  Rxa4 {[%clk 0:00:28]} 41. Ne5 {[%clk 0:00:05]}  Ra2+ {[%clk 0:00:26]} 42. Kf3 {[%clk 0:00:06]}  f6 {[%clk 0:00:19]} 43. Nd3 {[%clk 0:00:03]}  Kd6 {[%clk 0:00:13]} 44. g3 {[%clk 0:00:03]}  Ra3 {[%clk 0:00:11]} 45. Nc5 {[%clk 0:00:03]}  b5 {[%clk 0:00:10]} 46. Ne4+ {[%clk 0:00:03]}  Ke7 {[%clk 0:00:11]} 47. Nc5 {[%clk 0:00:03]}  b4 {[%clk 0:00:11]} 48. Ke4 {[%clk 0:00:03]}  Kd6 {[%clk 0:00:10]} 49. Rg4 {[%clk 0:00:02]}  hxg4 {[%clk 0:00:10]} 0-1


[Site "https://www.chess.com"]

[Event "Titled Tuesday Blitz April 12 Early 2022"]
[White "Kakulidis, Ellen"]
[Black "Petrova, Irina"]
[WhiteFideId "1444972"]
[BlackFideId "14124122"]
[WhiteElo "1852"]
[BlackElo "1993"]
[Result "0-1"]
[Round "08"]
[TimeControl "180+1"]
[Date "2022.04.13"]
[WhiteClock "0:00:05"]
[BlackClock "0:00:31"]

1. Nf3 {[%clk 0:03:00]}  d6 {[%clk 0:03:00]} 2. e4 {[%clk 0:02:59]}  Nf6 {[%clk 0:03:00]} 3. Nc3 {[%clk 0:02:58]}  e5 {[%clk 0:02:59]} 4. d4 {[%clk 0:02:56]}  Nbd7 {[%clk 0:02:58]} 5. g3 {[%clk 0:02:56]}  Be7 {[%clk 0:02:56]} 6. Bg2 {[%clk 0:02:56]}  O-O {[%clk 0:02:55]} 7. O-O {[%clk 0:02:57]}  c6 {[%clk 0:02:55]} 8. a4 {[%clk 0:02:56]}  Re8 {[%clk 0:02:51]} 9. b3 {[%clk 0:02:50]}  Qc7 {[%clk 0:02:40]} 10. Be3 {[%clk 0:02:45]}  Bf8 {[%clk 0:02:33]} 11. Qd2 {[%clk 0:02:41]}  g6 {[%clk 0:02:23]} 12. Bh6 {[%clk 0:02:37]}  Ng4 {[%clk 0:02:06]} 13. Bxf8 {[%clk 0:02:35]}  Nxf8 {[%clk 0:02:07]} 14. Rae1 {[%clk 0:02:21]}  Bd7 {[%clk 0:02:04]} 15. d5 {[%clk 0:02:14]}  Nf6 {[%clk 0:02:01]} 16. dxc6 {[%clk 0:02:03]}  Bxc6 {[%clk 0:01:57]} 17. Nb5 {[%clk 0:01:43]}  Bxb5 {[%clk 0:01:55]} 18. axb5 {[%clk 0:01:44]}  Ne6 {[%clk 0:01:47]} 19. c4 {[%clk 0:01:35]}  Nc5 {[%clk 0:01:44]} 20. Qc2 {[%clk 0:01:21]}  a6 {[%clk 0:01:39]} 21. bxa6 {[%clk 0:01:19]}  Rxa6 {[%clk 0:01:40]} 22. Nd2 {[%clk 0:01:15]}  Rea8 {[%clk 0:01:38]} 23. b4 {[%clk 0:01:11]}  Ra2 {[%clk 0:01:35]} 24. Qd1 {[%clk 0:01:04]}  Nd3 {[%clk 0:01:32]} 25. Re3 {[%clk 0:00:58]}  Nxb4 {[%clk 0:01:29]} 26. Nb3 {[%clk 0:00:47]}  Nd7 {[%clk 0:01:21]} 27. Qg4 {[%clk 0:00:25]}  Nc5 {[%clk 0:01:14]} 28. Nxc5 {[%clk 0:00:20]}  Qxc5 {[%clk 0:01:15]} 29. Rd1 {[%clk 0:00:18]}  Ra1 {[%clk 0:01:11]} 30. Ree1 {[%clk 0:00:17]}  Rxd1 {[%clk 0:01:05]} 31. Rxd1 {[%clk 0:00:18]}  Nc2 {[%clk 0:00:52]} 32. Bf1 {[%clk 0:00:17]}  Nd4 {[%clk 0:00:51]} 33. Rb1 {[%clk 0:00:13]}  b6 {[%clk 0:00:47]} 34. Qd7 {[%clk 0:00:12]}  Kg7 {[%clk 0:00:40]} 35. Qb7 {[%clk 0:00:12]}  Ra2 {[%clk 0:00:38]} 36. Rxb6 {[%clk 0:00:07]}  Nf3+ {[%clk 0:00:33]} 37. Kh1 {[%clk 0:00:05]}  Qxf2 {[%clk 0:00:31]} 0-1


[Site "https://www.chess.com"]

[Event "Titled Tuesday Blitz April 12 Early 2022"]
[White "Kaminski, Victor"]
[Black "Dushyant Sharma"]
[WhiteFideId "1131630"]
[BlackFideId "25065130"]
[WhiteElo "2181"]
[BlackElo "2105"]
[Result "0-1"]
[Round "08"]
[TimeControl "180+1"]
[Date "2022.04.13"]
[WhiteClock "0:01:29"]
[BlackClock "0:02:16"]

1. e4 {[%clk 0:03:00]}  d5 {[%clk 0:02:59]} 2. exd5 {[%clk 0:02:59]}  Nf6 {[%clk 0:02:59]} 3. Bb5+ {[%clk 0:02:58]}  c6 {[%clk 0:02:59]} 4. dxc6 {[%clk 0:02:57]}  Nxc6 {[%clk 0:03:00]} 5. Nf3 {[%clk 0:02:56]}  Bg4 {[%clk 0:02:58]} 6. O-O {[%clk 0:02:55]}  e6 {[%clk 0:02:58]} 7. h3 {[%clk 0:02:55]}  Bh5 {[%clk 0:02:58]} 8. d3 {[%clk 0:02:50]}  Bd6 {[%clk 0:02:56]} 9. Nbd2 {[%clk 0:02:48]}  O-O {[%clk 0:02:56]} 10. Bxc6 {[%clk 0:02:48]}  bxc6 {[%clk 0:02:56]} 11. Nc4 {[%clk 0:02:49]}  Bc7 {[%clk 0:02:55]} 12. Bg5 {[%clk 0:02:48]}  h6 {[%clk 0:02:55]} 13. Bh4 {[%clk 0:02:48]}  Rb8 {[%clk 0:02:51]} 14. Bg3 {[%clk 0:02:47]}  Bxg3 {[%clk 0:02:51]} 15. fxg3 {[%clk 0:02:47]}  Nd5 {[%clk 0:02:49]} 16. g4 {[%clk 0:02:46]}  Bg6 {[%clk 0:02:48]} 17. Qd2 {[%clk 0:02:44]}  f6 {[%clk 0:02:45]} 18. Rae1 {[%clk 0:02:43]}  e5 {[%clk 0:02:46]} 19. Nh4 {[%clk 0:02:31]}  Bh7 {[%clk 0:02:44]} 20. d4 {[%clk 0:02:31]}  exd4 {[%clk 0:02:33]} 21. Qxd4 {[%clk 0:02:30]}  Bxc2 {[%clk 0:02:33]} 22. Qxa7 {[%clk 0:02:30]}  Bd3 {[%clk 0:02:31]} 23. Nf5 {[%clk 0:02:23]}  Rf7 {[%clk 0:02:31]} 24. Qxf7+ {[%clk 0:02:03]}  Kxf7 {[%clk 0:02:30]} 25. Ncd6+ {[%clk 0:02:04]}  Kg8 {[%clk 0:02:26]} 26. Rf3 {[%clk 0:02:05]}  Bxf5 {[%clk 0:02:26]} 27. Nxf5 {[%clk 0:02:03]}  Rxb2 {[%clk 0:02:24]} 28. Ra3 {[%clk 0:02:00]}  Qb6+ {[%clk 0:02:21]} 29. Kh1 {[%clk 0:01:59]}  Qf2 {[%clk 0:02:20]} 30. Rg1 {[%clk 0:01:49]}  Nf4 {[%clk 0:02:19]} 31. Rf3 {[%clk 0:01:37]}  Qd2 {[%clk 0:02:18]} 32. a3 {[%clk 0:01:29]}  Nxg2 {[%clk 0:02:16]} 0-1


[Site "https://www.chess.com"]

[Event "Titled Tuesday Blitz April 12 Early 2022"]
[White "Kavyev, Ruslan"]
[Black "Gracia Alvarez, Gerardo Antonio"]
[WhiteFideId "34110981"]
[BlackFideId "5109124"]
[WhiteElo "2182"]
[BlackElo "2139"]
[Result "0-1"]
[Round "08"]
[TimeControl "180+1"]
[Date "2022.04.13"]
[WhiteClock "0:00:02"]
[BlackClock "0:00:08"]

1. d4 {[%clk 0:02:48]}  d5 {[%clk 0:02:59]} 2. c4 {[%clk 0:02:48]}  e6 {[%clk 0:02:59]} 3. g3 {[%clk 0:02:45]}  Nf6 {[%clk 0:02:55]} 4. Bg2 {[%clk 0:02:45]}  Be7 {[%clk 0:02:55]} 5. Nf3 {[%clk 0:02:44]}  O-O {[%clk 0:02:54]} 6. Qc2 {[%clk 0:02:44]}  dxc4 {[%clk 0:02:48]} 7. Qxc4 {[%clk 0:02:45]}  a6 {[%clk 0:02:48]} 8. Bf4 {[%clk 0:02:44]}  b5 {[%clk 0:02:42]} 9. Qxc7 {[%clk 0:02:44]}  Qxc7 {[%clk 0:02:41]} 10. Bxc7 {[%clk 0:02:45]}  Bb7 {[%clk 0:02:41]} 11. O-O {[%clk 0:02:42]}  Nbd7 {[%clk 0:02:38]} 12. Nbd2 {[%clk 0:02:35]}  Rfc8 {[%clk 0:02:38]} 13. Rfc1 {[%clk 0:02:34]}  Nd5 {[%clk 0:02:34]} 14. Ba5 {[%clk 0:02:31]}  N5f6 {[%clk 0:02:12]} 15. Kf1 {[%clk 0:01:50]}  Bd5 {[%clk 0:02:12]} 16. a3 {[%clk 0:01:40]}  Kf8 {[%clk 0:02:04]} 17. Ke1 {[%clk 0:01:40]}  Ke8 {[%clk 0:02:03]} 18. Kd1 {[%clk 0:01:39]}  h6 {[%clk 0:02:03]} 19. h3 {[%clk 0:01:38]}  Ne4 {[%clk 0:01:47]} 20. Nxe4 {[%clk 0:01:30]}  Bxe4 {[%clk 0:01:48]} 21. Ne1 {[%clk 0:01:20]}  Bxg2 {[%clk 0:01:37]} 22. Nxg2 {[%clk 0:01:21]}  Bf6 {[%clk 0:01:30]} 23. e3 {[%clk 0:01:19]}  e5 {[%clk 0:01:28]} 24. dxe5 {[%clk 0:01:04]}  Bxe5 {[%clk 0:01:22]} 25. Rxc8+ {[%clk 0:00:58]}  Rxc8 {[%clk 0:01:21]} 26. Rc1 {[%clk 0:00:59]}  Rxc1+ {[%clk 0:01:16]} 27. Kxc1 {[%clk 0:01:00]}  Nc5 {[%clk 0:01:16]} 28. Kc2 {[%clk 0:01:00]}  Ne4 {[%clk 0:01:14]} 29. Be1 {[%clk 0:00:59]}  g5 {[%clk 0:01:11]} 30. b3 {[%clk 0:00:47]}  Kd7 {[%clk 0:01:10]} 31. h4 {[%clk 0:00:44]}  f6 {[%clk 0:01:08]} 32. hxg5 {[%clk 0:00:43]}  hxg5 {[%clk 0:01:03]} 33. Kd3 {[%clk 0:00:42]}  Nc5+ {[%clk 0:01:03]} 34. Kc2 {[%clk 0:00:42]}  Ne4 {[%clk 0:01:03]} 35. f4 {[%clk 0:00:33]}  Bd6 {[%clk 0:01:03]} 36. a4 {[%clk 0:00:30]}  Ke6 {[%clk 0:01:00]} 37. g4 {[%clk 0:00:24]}  Kd5 {[%clk 0:00:56]} 38. f5 {[%clk 0:00:21]}  bxa4 {[%clk 0:00:53]} 39. bxa4 {[%clk 0:00:21]}  Nc5 {[%clk 0:00:53]} 40. a5 {[%clk 0:00:21]}  Ke4 {[%clk 0:00:50]} 41. Bc3 {[%clk 0:00:18]}  Be7 {[%clk 0:00:51]} 42. Ne1 {[%clk 0:00:07]}  Kxe3 {[%clk 0:00:47]} 43. Bb4 {[%clk 0:00:07]}  Kd4 {[%clk 0:00:16]} 44. Nd3 {[%clk 0:00:04]}  Kc4 {[%clk 0:00:17]} 45. Ba3 {[%clk 0:00:03]}  Kb5 {[%clk 0:00:11]} 46. Kd1 {[%clk 0:00:01]}  Nxd3 {[%clk 0:00:07]} 47. Bxe7 {[%clk 0:00:02]}  Nf2+ {[%clk 0:00:07]} 48. Ke2 {[%clk 0:00:02]}  Nxg4 {[%clk 0:00:08]} 49. Bxf6 {[%clk 0:00:02]}  Nxf6 {[%clk 0:00:08]} 0-1


[Site "https://www.chess.com"]

[Event "Titled Tuesday Blitz April 12 Early 2022"]
[White "Khamdamova, Afruza"]
[Black "Nozdrachev, Leonid"]
[WhiteFideId "14210444"]
[BlackFideId "24113433"]
[WhiteElo "1660"]
[BlackElo "2242"]
[Result "1-0"]
[Round "08"]
[TimeControl "180+1"]
[Date "2022.04.13"]
[WhiteClock "0:00:25"]
[BlackClock "0:00:05"]

1. e4 {[%clk 0:03:00]}  a6 {[%clk 0:02:59]} 2. d4 {[%clk 0:02:59]}  h5 {[%clk 0:02:58]} 3. Nf3 {[%clk 0:02:58]}  b5 {[%clk 0:02:55]} 4. c4 {[%clk 0:02:57]}  Bb7 {[%clk 0:02:53]} 5. Qc2 {[%clk 0:02:52]}  d6 {[%clk 0:02:43]} 6. cxb5 {[%clk 0:02:51]}  axb5 {[%clk 0:02:44]} 7. Bxb5+ {[%clk 0:02:51]}  Nd7 {[%clk 0:02:43]} 8. Nc3 {[%clk 0:02:48]}  h4 {[%clk 0:02:42]} 9. h3 {[%clk 0:02:47]}  Nf6 {[%clk 0:02:42]} 10. Bg5 {[%clk 0:02:46]}  c6 {[%clk 0:02:33]} 11. Bc4 {[%clk 0:02:42]}  Ba6 {[%clk 0:02:33]} 12. Bxa6 {[%clk 0:02:41]}  Rxa6 {[%clk 0:02:34]} 13. O-O {[%clk 0:02:40]}  Qa8 {[%clk 0:02:26]} 14. a3 {[%clk 0:02:31]}  e6 {[%clk 0:02:04]} 15. Bxh4 {[%clk 0:02:19]}  Nh5 {[%clk 0:02:02]} 16. Bg5 {[%clk 0:02:07]}  Be7 {[%clk 0:01:51]} 17. Bxe7 {[%clk 0:02:06]}  Kxe7 {[%clk 0:01:51]} 18. Qd2 {[%clk 0:01:59]}  Ra5 {[%clk 0:01:39]} 19. Rfe1 {[%clk 0:01:40]}  Rb8 {[%clk 0:01:37]} 20. d5 {[%clk 0:01:34]}  cxd5 {[%clk 0:01:26]} 21. exd5 {[%clk 0:01:34]}  e5 {[%clk 0:01:26]} 22. Qg5+ {[%clk 0:01:32]}  Nhf6 {[%clk 0:01:24]} 23. Nh4 {[%clk 0:01:26]}  g6 {[%clk 0:01:21]} 24. Rab1 {[%clk 0:01:17]}  Kf8 {[%clk 0:01:14]} 25. Qh6+ {[%clk 0:01:16]}  Kg8 {[%clk 0:01:04]} 26. f4 {[%clk 0:00:59]}  Nxd5 {[%clk 0:00:50]} 27. Nxd5 {[%clk 0:00:58]}  Rxd5 {[%clk 0:00:51]} 28. f5 {[%clk 0:00:56]}  g5 {[%clk 0:00:24]} 29. f6 {[%clk 0:00:49]}  Nxf6 {[%clk 0:00:21]} 30. Qxg5+ {[%clk 0:00:49]}  Kf8 {[%clk 0:00:19]} 31. Qxf6 {[%clk 0:00:48]}  Ke8 {[%clk 0:00:19]} 32. Nf5 {[%clk 0:00:48]}  Kd7 {[%clk 0:00:17]} 33. Qe7+ {[%clk 0:00:46]}  Kc6 {[%clk 0:00:16]} 34. Rbc1+ {[%clk 0:00:45]}  Kb5 {[%clk 0:00:11]} 35. Nxd6+ {[%clk 0:00:45]}  Ka4 {[%clk 0:00:11]} 36. Ne4 {[%clk 0:00:28]}  Rxb2 {[%clk 0:00:06]} 37. Nc3+ {[%clk 0:00:28]}  Kb3 {[%clk 0:00:06]} 38. Nxd5 {[%clk 0:00:27]}  Qxd5 {[%clk 0:00:05]} 39. Qb4+ {[%clk 0:00:25]}  Ka2 {[%clk 0:00:05]} 40. Ra1# {[%clk 0:00:25]} 1-0


[Site "https://www.chess.com"]